[Event "Late-Titled-Tuesday-Blitz-June-18-2024"]
[Site "Chess.com"]
[Date "2024.06.18"]
[Round "4"]
[White "sari07"]
[Black "pooh2012"]
[Result "0-1"]
[WhiteElo "2378"]
[BlackElo "2570"]
[TimeControl "180+1"]
[EndTime "14:41:20 PDT"]
[Termination "pooh2012 won by resignation"]

1. d4 {[%clk 0:03:00.9]} 1... Nf6 {[%clk 0:02:57.8]} 2. Nf3 {[%clk 0:02:59.4]}
2... e6 {[%clk 0:02:57.8]} 3. e3 {[%clk 0:02:58.2]} 3... c5 {[%clk 0:02:57.8]}
4. Bd3 {[%clk 0:02:56]} 4... b6 {[%clk 0:02:55.9]} 5. O-O {[%clk 0:02:54]} 5...
Bb7 {[%clk 0:02:55.2]} 6. c4 {[%clk 0:02:50.6]} 6... Be7 {[%clk 0:02:54.9]} 7.
Nc3 {[%clk 0:02:44.8]} 7... cxd4 {[%clk 0:02:49.2]} 8. exd4 {[%clk 0:02:45.3]}
8... d5 {[%clk 0:02:46.4]} 9. cxd5 {[%clk 0:02:42.3]} 9... Nxd5 {[%clk 0:02:46]}
10. Ne5 {[%clk 0:02:36.5]} 10... O-O {[%clk 0:02:37.5]} 11. Qh5 {[%clk
0:02:34.8]} 11... Nf6 {[%clk 0:02:34.7]} 12. Qh3 {[%clk 0:02:34.3]} 12... Qxd4
{[%clk 0:02:09.3]} 13. Bg5 {[%clk 0:01:50.4]} 13... h6 {[%clk 0:01:43.4]} 14.
Bxf6 {[%clk 0:01:45.6]} 14... Bxf6 {[%clk 0:01:42.3]} 15. Ng4 {[%clk 0:01:46.1]}
15... Rd8 {[%clk 0:00:54.8]} 16. Rad1 {[%clk 0:01:41.9]} 16... Qf4 {[%clk
0:00:54.7]} 17. Ne2 {[%clk 0:01:20.7]} 17... Qg5 {[%clk 0:00:53.8]} 18. f4
{[%clk 0:01:11]} 18... Qc5+ {[%clk 0:00:53.7]} 19. Kh1 {[%clk 0:01:11.1]} 19...
Nd7 {[%clk 0:00:48.4]} 20. Nxh6+ {[%clk 0:01:00.3]} 20... gxh6 {[%clk
0:00:46.6]} 21. Qxh6 {[%clk 0:01:01.2]} 21... Bg7 {[%clk 0:00:44.7]} 22. Qh7+
{[%clk 0:00:57.6]} 22... Kf8 {[%clk 0:00:44.2]} 23. f5 {[%clk 0:00:54.5]} 23...
Nf6 {[%clk 0:00:35.1]} 24. Qh3 {[%clk 0:00:34.5]} 24... e5 {[%clk 0:00:31.2]}
25. Ng3 {[%clk 0:00:20.7]} 25... Ke7 {[%clk 0:00:27.2]} 26. Qh4 {[%clk
0:00:10.7]} 26... Rh8 {[%clk 0:00:20.6]} 27. Qg5 {[%clk 0:00:07.7]} 27... Rxh2+
{[%clk 0:00:13.3]} 28. Kxh2 {[%clk 0:00:08.6]} 28... Rh8+ {[%clk 0:00:13.2]} 0-1

[Event "Late-Titled-Tuesday-Blitz-June-18-2024"]
[Site "Chess.com"]
[Date "2024.06.18"]
[Round "4"]
[White "slidingknight2775"]
[Black "SHIVACalypso"]
[Result "0-1"]
[WhiteElo "2690"]
[BlackElo "2544"]
[TimeControl "180+1"]
[EndTime "14:41:21 PDT"]
[Termination "SHIVACalypso won by checkmate"]

1. d4 {[%clk 0:03:00.9]} 1... Nf6 {[%clk 0:02:57.4]} 2. c4 {[%clk 0:03:01.4]}
2... d6 {[%clk 0:02:57.8]} 3. Nf3 {[%clk 0:02:59.6]} 3... Nbd7 {[%clk
0:02:55.1]} 4. Nc3 {[%clk 0:02:57.9]} 4... e5 {[%clk 0:02:54.6]} 5. g3 {[%clk
0:02:55.5]} 5... exd4 {[%clk 0:02:52]} 6. Nxd4 {[%clk 0:02:55.5]} 6... Nc5
{[%clk 0:02:52.5]} 7. Bg2 {[%clk 0:02:55.6]} 7... Ne6 {[%clk 0:02:52.9]} 8. Nc2
{[%clk 0:02:54.5]} 8... Be7 {[%clk 0:02:51.3]} 9. O-O {[%clk 0:02:54]} 9... O-O
{[%clk 0:02:51.9]} 10. b3 {[%clk 0:02:54.6]} 10... a5 {[%clk 0:02:49.6]} 11. Qd2
{[%clk 0:02:53.2]} 11... Nc5 {[%clk 0:02:43.2]} 12. Rd1 {[%clk 0:02:49.2]} 12...
Bf5 {[%clk 0:02:39.1]} 13. Ne3 {[%clk 0:02:41.5]} 13... Bg6 {[%clk 0:02:36.3]}
14. Ba3 {[%clk 0:02:36.9]} 14... Nfe4 {[%clk 0:02:35.5]} 15. Nxe4 {[%clk
0:02:31.7]} 15... Nxe4 {[%clk 0:02:36.4]} 16. Qe1 {[%clk 0:02:25.7]} 16... Bf6
{[%clk 0:02:35.4]} 17. Rac1 {[%clk 0:02:24.8]} 17... a4 {[%clk 0:02:35.6]} 18.
b4 {[%clk 0:02:20.5]} 18... Bg5 {[%clk 0:02:30.8]} 19. f4 {[%clk 0:02:15.6]}
19... Bh6 {[%clk 0:02:28.3]} 20. Ng4 {[%clk 0:02:12.6]} 20... f5 {[%clk
0:02:15.5]} 21. Nxh6+ {[%clk 0:02:11.5]} 21... gxh6 {[%clk 0:02:16.4]} 22. Bb2
{[%clk 0:02:01.8]} 22... Qe7 {[%clk 0:02:13.6]} 23. Bxe4 {[%clk 0:01:36.9]}
23... fxe4 {[%clk 0:02:09]} 24. Qc3 {[%clk 0:01:37.8]} 24... a3 {[%clk
0:02:04.3]} 25. Ba1 {[%clk 0:01:19.1]} 25... e3 {[%clk 0:01:59.2]} 26. Qh8+
{[%clk 0:01:13.1]} 26... Kf7 {[%clk 0:01:59]} 27. Qg7+ {[%clk 0:01:14]} 27...
Ke8 {[%clk 0:01:59.6]} 28. Qxe7+ {[%clk 0:01:13.2]} 28... Kxe7 {[%clk
0:01:59.7]} 29. Rc3 {[%clk 0:01:12.5]} 29... Kd7 {[%clk 0:01:57.6]} 30. Rxe3
{[%clk 0:01:12.2]} 30... Rfe8 {[%clk 0:01:57.3]} 31. Rxe8 {[%clk 0:01:06.5]}
31... Rxe8 {[%clk 0:01:58.2]} 32. Kf2 {[%clk 0:01:03.4]} 32... Bh5 {[%clk
0:01:57.6]} 33. Rd2 {[%clk 0:01:01.2]} 33... Re4 {[%clk 0:01:58.1]} 34. Rc2
{[%clk 0:00:59.7]} 34... Bf7 {[%clk 0:01:56.6]} 35. Bg7 {[%clk 0:00:34.8]} 35...
Rxc4 {[%clk 0:01:54.2]} 36. Rd2 {[%clk 0:00:22.7]} 36... Rxb4 {[%clk 0:01:53]}
37. Bxh6 {[%clk 0:00:22.8]} 37... Rb2 {[%clk 0:01:52.4]} 38. Rd3 {[%clk
0:00:20.8]} 38... Rxa2 {[%clk 0:01:51.6]} 39. f5 {[%clk 0:00:20.4]} 39... Bc4
{[%clk 0:01:48.2]} 40. Rc3 {[%clk 0:00:20.5]} 40... Rxe2+ {[%clk 0:01:44.9]} 41.
Kf3 {[%clk 0:00:21]} 41... a2 {[%clk 0:01:45.4]} 42. Ra3 {[%clk 0:00:21.2]}
42... Re5 {[%clk 0:01:37.5]} 43. g4 {[%clk 0:00:17.3]} 43... b5 {[%clk
0:01:33.5]} 44. Bg7 {[%clk 0:00:16.5]} 44... b4 {[%clk 0:01:31.1]} 45. Bxe5
{[%clk 0:00:12.8]} 45... dxe5 {[%clk 0:01:30]} 46. Ra4 {[%clk 0:00:12.2]} 46...
b3 {[%clk 0:01:27.5]} 47. f6 {[%clk 0:00:10.8]} 47... b2 {[%clk 0:01:26.2]} 48.
Rxc4 {[%clk 0:00:11.5]} 48... b1=Q {[%clk 0:01:22]} 49. f7 {[%clk 0:00:11.7]}
49... Ke7 {[%clk 0:01:22.4]} 50. Rxc7+ {[%clk 0:00:11.7]} 50... Kf8 {[%clk
0:01:23]} 51. g5 {[%clk 0:00:08.9]} 51... Qf5+ {[%clk 0:01:21.9]} 52. Ke2 {[%clk
0:00:08.7]} 52... a1=Q {[%clk 0:01:21.7]} 53. g6 {[%clk 0:00:08.9]} 53... Qxg6
{[%clk 0:01:21.2]} 54. Rc8+ {[%clk 0:00:08.9]} 54... Kxf7 {[%clk 0:01:21.1]} 55.
Rc7+ {[%clk 0:00:09.8]} 55... Ke8 {[%clk 0:01:20.9]} 56. Rc8+ {[%clk 0:00:10.3]}
56... Kd7 {[%clk 0:01:21.2]} 57. Rc1 {[%clk 0:00:10.9]} 57... Qxc1 {[%clk
0:01:20.6]} 58. h4 {[%clk 0:00:10.9]} 58... Qe4+ {[%clk 0:01:20.8]} 59. Kf2
{[%clk 0:00:10.6]} 59... Qcc2+ {[%clk 0:01:20.9]} 60. Kf1 {[%clk 0:00:10.5]}
60... Qeg2+ {[%clk 0:01:20.4]} 61. Ke1 {[%clk 0:00:10.2]} 61... Qge2# {[%clk
0:01:21.1]} 0-1

[Event "Late-Titled-Tuesday-Blitz-June-18-2024"]
[Site "Chess.com"]
[Date "2024.06.18"]
[Round "4"]
[White "Byniolus"]
[Black "ncofre98"]
[Result "1-0"]
[WhiteElo "2755"]
[BlackElo "2560"]
[TimeControl "180+1"]
[EndTime "14:41:24 PDT"]
[Termination "Byniolus won on time"]

1. d4 {[%clk 0:03:00.9]} 1... Nf6 {[%clk 0:02:59.1]} 2. Nf3 {[%clk 0:03:01.1]}
2... e6 {[%clk 0:02:58.4]} 3. Bf4 {[%clk 0:03:00.7]} 3... d5 {[%clk 0:02:57.7]}
4. e3 {[%clk 0:03:00.9]} 4... Bd6 {[%clk 0:02:58.2]} 5. Bg3 {[%clk 0:03:01.2]}
5... c5 {[%clk 0:02:58.6]} 6. Nbd2 {[%clk 0:03:01.3]} 6... Qc7 {[%clk
0:02:59.1]} 7. Be2 {[%clk 0:03:00.4]} 7... Nbd7 {[%clk 0:02:57.8]} 8. c4 {[%clk
0:02:56.6]} 8... cxd4 {[%clk 0:02:48.7]} 9. Nxd4 {[%clk 0:02:55.5]} 9... Bxg3
{[%clk 0:02:41.9]} 10. hxg3 {[%clk 0:02:56.4]} 10... O-O {[%clk 0:02:40.9]} 11.
O-O {[%clk 0:02:46.4]} 11... dxc4 {[%clk 0:02:20.9]} 12. Nxc4 {[%clk 0:02:45.4]}
12... Ne5 {[%clk 0:01:51.4]} 13. Nb5 {[%clk 0:02:24]} 13... Qb8 {[%clk
0:01:51.1]} 14. Rc1 {[%clk 0:01:40.6]} 14... Bd7 {[%clk 0:01:34.1]} 15. Qb3
{[%clk 0:01:27.5]} 15... Nxc4 {[%clk 0:01:24]} 16. Rxc4 {[%clk 0:01:23.2]} 16...
Bxb5 {[%clk 0:01:22.9]} 17. Qxb5 {[%clk 0:01:21.7]} 17... a6 {[%clk 0:01:21.8]}
18. Qb3 {[%clk 0:01:15.2]} 18... b5 {[%clk 0:01:09.1]} 19. Rc6 {[%clk 0:01:09]}
19... Qe5 {[%clk 0:00:59.9]} 20. Bf3 {[%clk 0:00:45.2]} 20... h5 {[%clk
0:00:50]} 21. Rfc1 {[%clk 0:00:35.3]} 21... Ra7 {[%clk 0:00:20.1]} 22. Qc3
{[%clk 0:00:29.9]} 22... Qb8 {[%clk 0:00:10.5]} 23. Qa5 {[%clk 0:00:25]} 23...
g6 {[%clk 0:00:02.9]} 24. Rxa6 {[%clk 0:00:21.5]} 24... Rxa6 {[%clk 0:00:03.3]}
25. Qxa6 {[%clk 0:00:22.4]} 25... Qe5 {[%clk 0:00:03.7]} 26. b3 {[%clk 0:00:18]}
26... Kg7 {[%clk 0:00:02.8]} 27. Qb6 {[%clk 0:00:11.4]} 1-0

[Event "Late-Titled-Tuesday-Blitz-June-18-2024"]
[Site "Chess.com"]
[Date "2024.06.18"]
[Round "4"]
[White "Hakiki_satranc"]
[Black "SocoLoco"]
[Result "1-0"]
[WhiteElo "2439"]
[BlackElo "2174"]
[TimeControl "180+1"]
[EndTime "14:41:24 PDT"]
[Termination "Hakiki_satranc won by resignation"]

1. Nf3 {[%clk 0:03:00.9]} 1... Nc6 {[%clk 0:02:59.7]} 2. g3 {[%clk 0:03:01.8]}
2... d5 {[%clk 0:02:59.8]} 3. Bg2 {[%clk 0:03:00]} 3... Bg4 {[%clk 0:03:00.2]}
4. c4 {[%clk 0:02:58.4]} 4... d4 {[%clk 0:02:59.3]} 5. b4 {[%clk 0:02:57.3]}
5... e6 {[%clk 0:02:48.5]} 6. b5 {[%clk 0:02:55]} 6... Nb8 {[%clk 0:02:48.1]} 7.
h3 {[%clk 0:02:51.7]} 7... Bxf3 {[%clk 0:02:45.3]} 8. Bxf3 {[%clk 0:02:52.6]}
8... c6 {[%clk 0:02:44.3]} 9. a4 {[%clk 0:02:48.1]} 9... Nf6 {[%clk 0:02:43.1]}
10. O-O {[%clk 0:02:45.2]} 10... Be7 {[%clk 0:02:40.1]} 11. d3 {[%clk
0:02:34.7]} 11... O-O {[%clk 0:02:39.6]} 12. Bf4 {[%clk 0:02:31.5]} 12... Nfd7
{[%clk 0:02:29.4]} 13. a5 {[%clk 0:02:24.2]} 13... e5 {[%clk 0:02:28.6]} 14. Bc1
{[%clk 0:02:18.6]} 14... a6 {[%clk 0:02:26.8]} 15. e3 {[%clk 0:02:07.1]} 15...
Qc8 {[%clk 0:02:13.2]} 16. exd4 {[%clk 0:02:04.3]} 16... exd4 {[%clk 0:02:12.8]}
17. Bf4 {[%clk 0:02:01.5]} 17... axb5 {[%clk 0:02:09.4]} 18. cxb5 {[%clk
0:02:00.6]} 18... cxb5 {[%clk 0:02:08.7]} 19. Re1 {[%clk 0:01:50.2]} 19... Bf6
{[%clk 0:02:05.2]} 20. Nd2 {[%clk 0:01:44]} 20... Nc6 {[%clk 0:02:02.2]} 21. Nb3
{[%clk 0:01:42.9]} 21... Re8 {[%clk 0:01:54.8]} 22. Qd2 {[%clk 0:01:42.8]} 22...
Nde5 {[%clk 0:01:45.6]} 23. Bg2 {[%clk 0:01:37.7]} 23... Qf5 {[%clk 0:01:41.5]}
24. Bxe5 {[%clk 0:01:28.3]} 24... Bxe5 {[%clk 0:01:29.6]} 25. a6 {[%clk
0:01:21.1]} 25... Qf6 {[%clk 0:00:37.2]} 26. axb7 {[%clk 0:01:17.3]} 26... Rab8
{[%clk 0:00:37.6]} 27. Nc5 {[%clk 0:01:06.8]} 27... Qd6 {[%clk 0:00:32.8]} 28.
Rec1 {[%clk 0:00:29]} 28... g6 {[%clk 0:00:29.5]} 29. Na6 {[%clk 0:00:24.8]}
29... Ne7 {[%clk 0:00:15.9]} 30. Nxb8 {[%clk 0:00:24.4]} 30... Rxb8 {[%clk
0:00:16.8]} 31. Ra8 {[%clk 0:00:22.7]} 31... Nd5 {[%clk 0:00:15.9]} 32. Rxb8+
{[%clk 0:00:21]} 32... Qxb8 {[%clk 0:00:16.8]} 33. Rc8+ {[%clk 0:00:20.8]} 33...
Kg7 {[%clk 0:00:15.3]} 34. Rxb8 {[%clk 0:00:19.9]} 34... Bxb8 {[%clk 0:00:16.2]}
35. Bxd5 {[%clk 0:00:18.9]} 1-0

[Event "Late-Titled-Tuesday-Blitz-June-18-2024"]
[Site "Chess.com"]
[Date "2024.06.18"]
[Round "4"]
[White "CristhianPortalR"]
[Black "jero888"]
[Result "1-0"]
[WhiteElo "2510"]
[BlackElo "2338"]
[TimeControl "180+1"]
[EndTime "14:41:26 PDT"]
[Termination "CristhianPortalR won on time"]

1. e4 {[%clk 0:03:00.9]} 1... c5 {[%clk 0:02:56]} 2. Nf3 {[%clk 0:03:00.6]} 2...
d6 {[%clk 0:02:55.1]} 3. d4 {[%clk 0:03:00.9]} 3... cxd4 {[%clk 0:02:56]} 4.
Nxd4 {[%clk 0:03:01.2]} 4... Nf6 {[%clk 0:02:56.7]} 5. Nc3 {[%clk 0:02:58.3]}
5... Nc6 {[%clk 0:02:55.8]} 6. Bg5 {[%clk 0:02:58.1]} 6... Bd7 {[%clk
0:02:55.1]} 7. Be2 {[%clk 0:02:57.1]} 7... Qa5 {[%clk 0:02:54.3]} 8. Bxf6 {[%clk
0:02:50.8]} 8... gxf6 {[%clk 0:02:50.9]} 9. Nb3 {[%clk 0:02:48.5]} 9... Qg5
{[%clk 0:02:50]} 10. g3 {[%clk 0:02:42.2]} 10... f5 {[%clk 0:02:46.5]} 11. f4
{[%clk 0:02:38.2]} 11... Qg6 {[%clk 0:02:45.3]} 12. Bf3 {[%clk 0:02:29.3]} 12...
Bg7 {[%clk 0:02:37.1]} 13. Qd3 {[%clk 0:02:11.9]} 13... Rc8 {[%clk 0:02:19.4]}
14. a3 {[%clk 0:01:42.5]} 14... O-O {[%clk 0:02:09.7]} 15. O-O-O {[%clk
0:01:36.7]} 15... Bxc3 {[%clk 0:01:41.8]} 16. bxc3 {[%clk 0:01:29.1]} 16... Rc7
{[%clk 0:01:08]} 17. Rhg1 {[%clk 0:00:43.8]} 17... Rfc8 {[%clk 0:01:06.2]} 18.
g4 {[%clk 0:00:43.7]} 18... fxg4 {[%clk 0:01:03.4]} 19. Bxg4 {[%clk 0:00:42.2]}
19... Bxg4 {[%clk 0:01:00.2]} 20. h3 {[%clk 0:00:40.7]} 20... Qf6 {[%clk
0:00:36.5]} 21. Rxg4+ {[%clk 0:00:39.5]} 21... Kh8 {[%clk 0:00:37]} 22. Rdg1
{[%clk 0:00:38.6]} 22... b5 {[%clk 0:00:23.9]} 23. Rg7 {[%clk 0:00:29.8]} 23...
b4 {[%clk 0:00:20.7]} 24. Qg3 {[%clk 0:00:19.7]} 24... Qg6 {[%clk 0:00:04.1]}
25. Rxg6 {[%clk 0:00:19.5]} 25... fxg6 {[%clk 0:00:04.8]} 26. axb4 {[%clk
0:00:18.9]} 26... Nxb4 {[%clk 0:00:04.7]} 27. Kb2 {[%clk 0:00:17.7]} 27... a5
{[%clk 0:00:01.1]} 28. Ra1 {[%clk 0:00:17.2]} 1-0

[Event "Late-Titled-Tuesday-Blitz-June-18-2024"]
[Site "Chess.com"]
[Date "2024.06.18"]
[Round "4"]
[White "kikoveiga"]
[Black "aranibos"]
[Result "1-0"]
[WhiteElo "2718"]
[BlackElo "2271"]
[TimeControl "180+1"]
[EndTime "14:41:27 PDT"]
[Termination "kikoveiga won on time"]

1. d4 {[%clk 0:02:54.9]} 1... d5 {[%clk 0:02:58.8]} 2. Bg5 {[%clk 0:02:54.3]}
2... c6 {[%clk 0:02:57.9]} 3. e3 {[%clk 0:02:53.1]} 3... h6 {[%clk 0:02:57.8]}
4. Bh4 {[%clk 0:02:52.7]} 4... Bf5 {[%clk 0:02:57.2]} 5. Nd2 {[%clk 0:02:51.2]}
5... Qb6 {[%clk 0:02:56.7]} 6. Rb1 {[%clk 0:02:41.5]} 6... Nd7 {[%clk
0:02:50.4]} 7. Ngf3 {[%clk 0:02:41.5]} 7... e6 {[%clk 0:02:47.8]} 8. Bd3 {[%clk
0:02:37.7]} 8... Bxd3 {[%clk 0:02:45.6]} 9. cxd3 {[%clk 0:02:38.6]} 9... Qa6
{[%clk 0:02:44.9]} 10. Qb3 {[%clk 0:02:35.8]} 10... Ngf6 {[%clk 0:02:39.6]} 11.
O-O {[%clk 0:02:35.4]} 11... Be7 {[%clk 0:02:33.4]} 12. e4 {[%clk 0:02:32.4]}
12... g5 {[%clk 0:02:17.8]} 13. Bg3 {[%clk 0:02:31.5]} 13... Nh5 {[%clk
0:02:17.2]} 14. Rfe1 {[%clk 0:02:31.3]} 14... Nxg3 {[%clk 0:02:12.9]} 15. hxg3
{[%clk 0:02:32.2]} 15... O-O {[%clk 0:02:12.3]} 16. Nf1 {[%clk 0:02:24]} 16...
Qb6 {[%clk 0:02:03.1]} 17. Qc2 {[%clk 0:02:17.3]} 17... Bf6 {[%clk 0:02:02]} 18.
e5 {[%clk 0:02:07.5]} 18... Bg7 {[%clk 0:02:00.9]} 19. Ne3 {[%clk 0:02:08.4]}
19... Rac8 {[%clk 0:01:58.6]} 20. b4 {[%clk 0:02:08]} 20... a5 {[%clk
0:01:54.5]} 21. a3 {[%clk 0:02:07.5]} 21... Qa6 {[%clk 0:01:47.7]} 22. Qc3
{[%clk 0:02:02.7]} 22... Ra8 {[%clk 0:01:30]} 23. Nd2 {[%clk 0:02:02.1]} 23...
Rfc8 {[%clk 0:01:24]} 24. Nb3 {[%clk 0:02:01.5]} 24... b6 {[%clk 0:01:24.4]} 25.
Rec1 {[%clk 0:02:00.7]} 25... axb4 {[%clk 0:01:23.5]} 26. axb4 {[%clk
0:02:00.8]} 26... Qb7 {[%clk 0:01:21.8]} 27. f4 {[%clk 0:01:57]} 27... gxf4
{[%clk 0:01:20.1]} 28. gxf4 {[%clk 0:01:57.9]} 28... Kh8 {[%clk 0:01:19.9]} 29.
f5 {[%clk 0:01:56.4]} 29... Bf8 {[%clk 0:01:18.4]} 30. Rf1 {[%clk 0:01:52.6]}
30... c5 {[%clk 0:01:15.9]} 31. bxc5 {[%clk 0:01:49.8]} 31... Qc6 {[%clk
0:01:10.3]} 32. fxe6 {[%clk 0:01:44.1]} 32... Qxe6 {[%clk 0:01:08.2]} 33. Nf5
{[%clk 0:01:26.4]} 33... bxc5 {[%clk 0:01:05.8]} 34. dxc5 {[%clk 0:01:27.3]}
34... Nxc5 {[%clk 0:01:04.1]} 35. Nbd4 {[%clk 0:01:27]} 35... Qxe5 {[%clk
0:00:59.3]} 36. Rbe1 {[%clk 0:01:25.2]} 36... Ne4 {[%clk 0:00:36]} 37. Qb2
{[%clk 0:01:23.1]} 37... Rab8 {[%clk 0:00:27.2]} 38. Qe2 {[%clk 0:01:21.7]}
38... Bc5 {[%clk 0:00:25.3]} 39. dxe4 {[%clk 0:01:14.8]} 39... Bxd4+ {[%clk
0:00:24.7]} 40. Kh1 {[%clk 0:01:15.1]} 40... dxe4 {[%clk 0:00:19.7]} 41. Qh5
{[%clk 0:01:14.8]} 41... Rb6 {[%clk 0:00:15.3]} 42. Qxf7 {[%clk 0:01:08.3]}
42... Rg8 {[%clk 0:00:10.5]} 43. Rd1 {[%clk 0:00:47.1]} 1-0

[Event "Late-Titled-Tuesday-Blitz-June-18-2024"]
[Site "Chess.com"]
[Date "2024.06.18"]
[Round "4"]
[White "Tolya2"]
[Black "Chessbard1972"]
[Result "1/2-1/2"]
[WhiteElo "2470"]
[BlackElo "2299"]
[TimeControl "180+1"]
[EndTime "14:41:29 PDT"]
[Termination "Game drawn - insufficient material"]

1. Nf3 {[%clk 0:03:00.9]} 1... Nf6 {[%clk 0:02:58.9]} 2. c4 {[%clk 0:02:58.2]}
2... g6 {[%clk 0:02:58.3]} 3. Nc3 {[%clk 0:02:57.5]} 3... Bg7 {[%clk 0:02:58.6]}
4. e4 {[%clk 0:02:57.3]} 4... d6 {[%clk 0:02:59.2]} 5. d4 {[%clk 0:02:56.7]}
5... O-O {[%clk 0:02:59.4]} 6. Be2 {[%clk 0:02:56.4]} 6... Na6 {[%clk
0:02:59.5]} 7. h3 {[%clk 0:02:54.1]} 7... c5 {[%clk 0:02:59.2]} 8. Be3 {[%clk
0:02:53]} 8... cxd4 {[%clk 0:02:56.8]} 9. Nxd4 {[%clk 0:02:51.8]} 9... Nc5
{[%clk 0:02:56.4]} 10. Qc2 {[%clk 0:02:50.5]} 10... a5 {[%clk 0:02:56.2]} 11.
O-O {[%clk 0:02:48.8]} 11... a4 {[%clk 0:02:56.3]} 12. Rfd1 {[%clk 0:02:46.8]}
12... Qa5 {[%clk 0:02:55.7]} 13. Ndb5 {[%clk 0:02:45.3]} 13... Be6 {[%clk
0:02:48.3]} 14. f3 {[%clk 0:02:40.5]} 14... Nfd7 {[%clk 0:02:40]} 15. Nd5 {[%clk
0:02:35.5]} 15... Bxd5 {[%clk 0:02:37.5]} 16. exd5 {[%clk 0:02:30.4]} 16... Rac8
{[%clk 0:02:25.2]} 17. Bf1 {[%clk 0:02:28.7]} 17... Ne5 {[%clk 0:02:14.5]} 18.
Rab1 {[%clk 0:02:25.3]} 18... f5 {[%clk 0:02:11.1]} 19. b4 {[%clk 0:02:23]}
19... axb3 {[%clk 0:02:11]} 20. axb3 {[%clk 0:02:22.7]} 20... f4 {[%clk
0:01:57]} 21. Bf2 {[%clk 0:02:17.2]} 21... Na6 {[%clk 0:01:52.5]} 22. Nd4 {[%clk
0:02:12]} 22... Rf7 {[%clk 0:01:42.4]} 23. Ne6 {[%clk 0:02:04.4]} 23... Qb4
{[%clk 0:01:34.5]} 24. Be1 {[%clk 0:01:55]} 24... Qb6+ {[%clk 0:01:32.9]} 25.
Bf2 {[%clk 0:01:53.7]} 25... Qb4 {[%clk 0:01:32.7]} 26. Qd2 {[%clk 0:01:49.8]}
26... Qxd2 {[%clk 0:01:28.6]} 27. Rxd2 {[%clk 0:01:49.1]} 27... Nc7 {[%clk
0:01:23.1]} 28. Nxg7 {[%clk 0:01:42.2]} 28... Kxg7 {[%clk 0:01:21.8]} 29. b4
{[%clk 0:01:38.7]} 29... Ne8 {[%clk 0:01:06.6]} 30. c5 {[%clk 0:01:36.5]} 30...
Nf6 {[%clk 0:01:05.3]} 31. Rd4 {[%clk 0:01:18.2]} 31... g5 {[%clk 0:01:03.9]}
32. Rd2 {[%clk 0:01:15.2]} 32... Rff8 {[%clk 0:01:03.4]} 33. Ra1 {[%clk
0:01:11.8]} 33... Ra8 {[%clk 0:01:00.3]} 34. Rda2 {[%clk 0:01:10.5]} 34... Rxa2
{[%clk 0:01:00.4]} 35. Rxa2 {[%clk 0:01:10.7]} 35... Rd8 {[%clk 0:00:59.7]} 36.
Ra7 {[%clk 0:01:09]} 36... dxc5 {[%clk 0:00:57.4]} 37. Rxb7 {[%clk 0:01:07.1]}
37... cxb4 {[%clk 0:00:54.7]} 38. Rxe7+ {[%clk 0:00:58.2]} 38... Nf7 {[%clk
0:00:54.6]} 39. Rb7 {[%clk 0:00:57.2]} 39... Rxd5 {[%clk 0:00:49.2]} 40. Bc4
{[%clk 0:00:53.9]} 40... Rd1+ {[%clk 0:00:48.6]} 41. Kh2 {[%clk 0:00:54]} 41...
Nd5 {[%clk 0:00:48.2]} 42. Bxd5 {[%clk 0:00:51.3]} 42... Rxd5 {[%clk 0:00:47.4]}
43. Rxb4 {[%clk 0:00:51.7]} 43... Kg6 {[%clk 0:00:45.7]} 44. Rd4 {[%clk
0:00:50.4]} 44... Rxd4 {[%clk 0:00:44.9]} 45. Bxd4 {[%clk 0:00:50.1]} 45... Kf5
{[%clk 0:00:45.3]} 46. Bb6 {[%clk 0:00:48.3]} 46... h5 {[%clk 0:00:45]} 47. g4+
{[%clk 0:00:46.8]} 47... fxg3+ {[%clk 0:00:42.4]} 48. Kxg3 {[%clk 0:00:46.7]}
48... Ne5 {[%clk 0:00:43]} 49. Bc7 {[%clk 0:00:44.7]} 49... Nd3 {[%clk
0:00:40.6]} 50. Bd6 {[%clk 0:00:42.8]} 50... Nc1 {[%clk 0:00:39.4]} 51. h4
{[%clk 0:00:39.4]} 51... Ne2+ {[%clk 0:00:37.9]} 52. Kf2 {[%clk 0:00:38.3]}
52... Nf4 {[%clk 0:00:35.9]} 53. hxg5 {[%clk 0:00:36.9]} 53... Kxg5 {[%clk
0:00:35.5]} 54. Bxf4+ {[%clk 0:00:34.4]} 54... Kxf4 {[%clk 0:00:35.5]} 55. Kg2
{[%clk 0:00:34.9]} 55... h4 {[%clk 0:00:35.6]} 56. Kh3 {[%clk 0:00:35]} 56...
Kxf3 {[%clk 0:00:36.2]} 57. Kxh4 {[%clk 0:00:35.1]} 1/2-1/2

[Event "Late-Titled-Tuesday-Blitz-June-18-2024"]
[Site "Chess.com"]
[Date "2024.06.18"]
[Round "4"]
[White "evgchess5"]
[Black "Pelusiansky"]
[Result "1/2-1/2"]
[WhiteElo "2912"]
[BlackElo "2573"]
[TimeControl "180+1"]
[EndTime "14:41:30 PDT"]
[Termination "Game drawn by repetition"]

1. e4 {[%clk 0:02:57.1]} 1... e5 {[%clk 0:02:59.6]} 2. Nf3 {[%clk 0:02:54.6]}
2... Nf6 {[%clk 0:02:59.8]} 3. Nxe5 {[%clk 0:02:53.7]} 3... d6 {[%clk 0:03:00]}
4. Nf3 {[%clk 0:02:54.3]} 4... Nxe4 {[%clk 0:03:00.5]} 5. d4 {[%clk 0:02:54.7]}
5... d5 {[%clk 0:02:59.2]} 6. Bd3 {[%clk 0:02:55.3]} 6... Bb4+ {[%clk
0:02:57.9]} 7. c3 {[%clk 0:02:53.1]} 7... Bd6 {[%clk 0:02:58.2]} 8. O-O {[%clk
0:02:53.1]} 8... O-O {[%clk 0:02:58.3]} 9. c4 {[%clk 0:02:53.1]} 9... c6 {[%clk
0:02:56.4]} 10. Re1 {[%clk 0:02:53.1]} 10... Re8 {[%clk 0:02:48.5]} 11. Nc3
{[%clk 0:02:51.3]} 11... Bf5 {[%clk 0:02:37.7]} 12. Qc2 {[%clk 0:02:31.9]} 12...
Na6 {[%clk 0:02:27.1]} 13. a3 {[%clk 0:02:25.7]} 13... Bg4 {[%clk 0:01:51.8]}
14. Nxe4 {[%clk 0:01:24]} 14... dxe4 {[%clk 0:01:29]} 15. Rxe4 {[%clk 0:01:23]}
15... Bxf3 {[%clk 0:01:23.9]} 16. Rxe8+ {[%clk 0:01:17.4]} 16... Qxe8 {[%clk
0:01:23.7]} 17. gxf3 {[%clk 0:01:17.8]} 17... f5 {[%clk 0:00:49.6]} 18. c5
{[%clk 0:00:51.3]} 18... Bc7 {[%clk 0:00:35.2]} 19. Bxf5 {[%clk 0:00:41.8]}
19... Qh5 {[%clk 0:00:31.8]} 20. f4 {[%clk 0:00:39.8]} 20... Rf8 {[%clk
0:00:26.3]} 21. Be6+ {[%clk 0:00:34.1]} 21... Kh8 {[%clk 0:00:25.4]} 22. Be3
{[%clk 0:00:33.5]} 22... Bxf4 {[%clk 0:00:20.7]} 23. Bxf4 {[%clk 0:00:33.5]}
23... Rxf4 {[%clk 0:00:21.6]} 24. Re1 {[%clk 0:00:31.2]} 24... Nc7 {[%clk
0:00:18.2]} 25. Re5 {[%clk 0:00:25.4]} 25... Qh4 {[%clk 0:00:14.3]} 26. Bf5
{[%clk 0:00:14.4]} 26... Rxd4 {[%clk 0:00:10]} 27. Qe2 {[%clk 0:00:12.8]} 27...
Qg5+ {[%clk 0:00:08.4]} 28. Kf1 {[%clk 0:00:10.6]} 28... Qc1+ {[%clk 0:00:06.9]}
29. Kg2 {[%clk 0:00:08.5]} 29... Qg5+ {[%clk 0:00:07.2]} 30. Kf1 {[%clk
0:00:08.5]} 30... Qc1+ {[%clk 0:00:07.4]} 31. Kg2 {[%clk 0:00:08.6]} 31... Qg5+
{[%clk 0:00:08]} 32. Kf1 {[%clk 0:00:08.8]} 1/2-1/2